{"text_format":"1","workbook":"xlsx","n_sheets":6,"sheets":["A. Disclaimer","B. Instructions","C. IOC LAR Policy","D. LAR S.S.P.","Backbone","Dropdown"],"not_rendered":{"charts":0,"images":0,"macros":1,"external_links":0,"defined_names":83,"comments":0,"pivot_tables":0},"unopened":[],"bounds":{"document_bytes":16777216,"sheet_cells":100000,"rows_first":2000,"rows_last":500,"rows_between":2000,"halvings":0,"cell_chars":16384,"cell_head_chars":4096},"cells_cut":0,"cells_raw":0,"read":"whole","date_system":"1900"}

{"sheet":"A. Disclaimer","index":0,"n_rows":4,"n_cols":2,"rows_kept":4,"cut":false,"hidden":false,"merged":[[3,1,26,9],[1,1,1,9],[2,1,2,9]]}
[]
[null,"TOKYO 2020"]
[null,"IMPORTANT NOTICE"]
[null,"The LAR Sport Specific Procedures (LAR SSP) file is a working document and every effort has been made to include correct and accurate information at the time of publication. SEQ Tokyo 2020, IOC and each respective IF are working closely to ensure alignment between COVID-19 countermeasures and IF rules & regulations and if deemed necessary, sport specific procedures will be revised. \n\nPlease ensure to refer always to the latest version which will be uploaded to Tokyo 2020 CONNECT. \nWhen a new version is released, communication will be sent to all NOCs and all previous versions will also remain in Tokyo 2020 CONNECT (under Sport Entries section). In addition, a List of amendments will be provided for your reference. \n\nIf you have any doubts about the information provided, please contact olympicsportsentries@tokyo2020.jp, or melina.xanthopoulou@tokyo2020.jp "]

{"sheet":"B. Instructions","index":1,"n_rows":4,"n_cols":2,"rows_kept":4,"cut":false,"hidden":false,"merged":[[1,1,1,9],[2,1,2,9],[3,1,28,9]]}
[]
[null,"TOKYO 2020"]
[null,"LAR - LATE ATHLETE REPLACEMENT PROCEDURES"]
[null,"Please read carefully for your overall planning and to ensure smooth  Games time LAR operations. \nFurther to the Entries deadline 5th July 2021 23:59 local Tokyo time, LAR will be applied for replacements in accordance to the IOC LAR Policy. All LARs will have to be submitted through the e-LAR tool in the SEQ system and every NOC will have access to the system with up to two designated persons. In the e-LAR,  NOCs  have the ability to upload files such as medical reports and X-rays to be reviewed by the IF and IOC. \n\nPlease ensure that your Team Leaders are aware that ALL replacements are to be submitted through e-LAR by the NOC authorized person. \n\nImportant difference from previous OG. \nTeam Sports with an Ap entitlement: Changes can be made to the final roster without having to go through the LAR approval process. That means that an NOC may re-composition the team among the identified Aa and Ap athletes in the final entries submission.  Please note that an NOC still needs to apply for a LAR but the process does not require an approval and the change is immediate. \n\nThere are four tabs NOCs can access in this excel document.\nA. Disclaimer \nB. Instructions \nC. IOC LAR Policy (for your reference) \nD. LAR Detailed Information which is the tab that has all the information for each sport/discipline/event. In this tab please choose from the drop down menu list the Sport and the Event. All the availabple applicable information will appear. \n\nThe competition schedule information is current as of 10-May-2021. Please refer to https://olympics.com/tokyo-2020/en/schedule/ for the latest information.\n\nIf you have any further questions on LAR process, we recommend you contact directly the Tokyo 2020 Sport Entries team at olympicsportsentries@tokyo2020.jp, or melina.xanthopoulou@tokyo2020.jp\n\n"]

{"sheet":"C. IOC LAR Policy","index":2,"n_rows":5,"n_cols":2,"rows_kept":5,"cut":false,"hidden":false,"merged":[[4,1,100,9],[1,1,1,9],[2,1,2,9]]}
[]
[null,"LATE ATHETE REPLACEMENT (LAR) POLICY"]
[null,"FOR THE GAMES OF THE XXXII OLYMPIAD TOKYO 2020"]
[]
[null,"This policy will apply to athletes of National Olympic Committees (NOCs) attending the Olympic Games Tokyo 2020.\n\nIt should be noted that, due to the COVID-19 pandemic and the consequent Olympic Games Tokyo 2020 postponement agreed on 24 March 2020 by the Prime Minister of Japan, Shinzo Abe, and IOC President Bach, and confirmed by the IOC Executive Board, the period of the Olympic Games Tokyo 2020 to be held in 2021 is from 23 July to 8 August 2021.\n\nTherefore, this new version of the Late Athlete Replacement (LAR) for the Games of the XXXII Olympiad Tokyo 2020, has been amended to address the unprecedented situation and supersedes the previous version. This provides an opportunity for all NOCs and International Federations (IF) to adapt their plans accordingly and puts measures in place to protect the health and safety of the Japanese population and athletes.\n\nThe deadline for the Final Entries list of participating athletes in the Olympic Games Tokyo 2020 (sport entries deadline) is 5 July 2021 at 23:59 Japan time (UTC+9).\n\nAfter the sport entries deadline, where there are medical conditions preventing participation of an athlete, proven Anti-Doping Rule Violation (ADRV), a positive COVID-19 test, isolation or quarantine due to a COVID-19 infection or other exceptional reasons, the IOC, after consultation with the relevant IF and IOC medical experts (when deemed appropriate by the IOC), may authorise a permanent replacement of an athlete by another athlete only in the same sport and discipline and event.\n\nThis policy is only applicable for those sports/disciplines where the quota place has been allocated to the NOC and not to an athlete by name.\n\nFor those sports/disciplines in which the quota place is allocated to an athlete by name please note that the reallocation procedure will be initiated as per the Late Athlete Replacement procedure and in accordance to the respective Qualification System.\n\nLate Athlete Replacement (LAR) is possible only provided that:\n\n• The replacement athlete meets the eligibility conditions and qualification criteria to take part in the Olympic Games, as stipulated in the “Qualification Systems – Olympic Games Tokyo 2020” per sport/disciplines published in 2018, and regularly updated by the IOC on the NOC Games Preparation Platform;\n• The NOC of the replacement athlete had applied successfully for accreditation for the athlete prior to the accreditation application deadline and thus, the replacement athlete has been registered by Tokyo 2020 in the “NOC's athlete Accreditation Long List”;\n• No doping control issues are pending concerning the replacement athlete; and\n• The replacement athlete has agreed to fully comply with the rules outlined in the latest version of the Athletes and Team Officials Playbook.\n\nIn addition, the steps outlined below must be followed and the required forms submitted within the timeframe stated in this policy.\n\n• The “Late Athlete Replacement Form” and “Sport Entry Form” must be completed and a valid medical certificate and supporting document for the replaced athlete must be submitted by the relevant NOC, for the athlete being replaced and the replacement athlete using the eLAR tool in the Sport Entries System (SEQ).\n• The “Conditions of Participation” including the “Parental / Legal Guardian Acknowledgement of Consent for Minors” form (if applicable) must be completed and submitted by the relevant NOC for the replacement athlete. The NOC must submit a scanned copy of the “Conditions of Participation” electronically and bring the original, signed and stamped to the Accreditation Centre in the Olympic Village Team Processing Centre.\n• If an athlete is being replaced due to a positive COVID-19 test, a copy of this test result should be provided.\n• If an athlete is replaced due to isolation or quarantine due to a COVID-19 infection or for exceptional reasons, any relevant evidence, information and / or documents should be provided.\n\nThe IOC and the relevant IF may make a LAR, subject to their joint consent and at their discretion.\n\nThe latest a Late Athlete Replacement may occur and must complete no later than the first Team Manager’s Meeting/Technical Meeting for the respective sport/discipline. This is subject to sport specific regulations. The deadlines will be outlined by sport in the Late Athlete Replacement procedures.\n\nAlternate athletes (Ap):\n\nAs per the “Accreditation at the Olympic Games – Detailed specifications” NOCs can activate an alternate athlete (Ap) in the following sports and disciplines: Artistic swimming, Athletics, Cycling – BMX racing, Cycling – BMX Freestyle, Cycling – track, Equestrian, Fencing, Handball, Hockey, Football, Rowing, Rugby, Table tennis and Water polo.\n\nThe Ap athlete needs to be identified at the time of the DRM but an NOC can replace the athlete prior to the deadline per sport set out in the Late Athlete Replacement procedures.\n\nBefore the sport specific deadlines set in Late Athlete Replacement procedures, the NOCs also have the possibility to activate their alternate athletes or to use a replacement from the long list and be in a position to appoint another Ap athlete.\n\nOnce competition has started, the activation of the Ap athlete has to follow the e-LAR process as above and according to the process stipulated in the Late Athlete Replacement procedures.\n\nAll documentation and queries regarding the LAR should be addressed to Tokyo 2020 Sports Entries through the e-LAR tool or in person at the Sport Entries Office in the Olympic Village Team Processing Centre.\n\nApplications with missing information will not be processed.\n\nThis policy is subject to further change by the IOC for exceptional circumstances.\n\nUpdated: 26 April 2021"]

{"sheet":"D. LAR S.S.P.","index":3,"n_rows":16,"n_cols":9,"rows_kept":16,"cut":false,"hidden":false,"merged":[[15,1,37,7],[1,1,1,7],[2,1,2,7],[8,1,8,3],[11,1,11,3],[11,5,11,7]]}
[]
[null,"TOKYO 2020"]
[null,"LAR - LATE ATHLETE REPLACEMENT PROCEDURES"]
[]
[null,"DISCIPLINE ",null,null,null,"REALLOCATION  ",null,{"$f":"IFERROR(VLOOKUP($D$5&$D$7,Backbone!$A$3:$O$71,5,FALSE),\"\")","v":""},8]
[null,null,null,{"$f":"IFERROR(VLOOKUP($D$5,Backbone!$B$3:$O$71,2,FALSE),\"\")","v":""},null,"(after SEQ deadline)"]
[null,"EVENT ",null,null,null,"LAR ",null,{"$f":"IFERROR(VLOOKUP($D$5&$D$7,Backbone!$A$3:$O$71,6,FALSE),\"\")","v":""}]
[]
[null,{"$f":"IFERROR(VLOOKUP($D$5&$D$7,Backbone!$A$3:$O$71,9,FALSE),\"\")","v":""},null,null,null,"Ap  ",null,{"$f":"IFERROR(VLOOKUP($D$5&$D$7,Backbone!$A$3:$O$71,7,FALSE),\"\")","v":""}]
[null,{"$f":"IFERROR(VLOOKUP($D$5&$D$7,Backbone!$A$3:$O$71,10,FALSE),\"\")","v":""},null,{"$f":"IFERROR(VLOOKUP($D$5&$D$7,Backbone!$A$3:$O$71,11,FALSE),\"\")","v":""}]
[]
[null,"Start of Competition",null,null,null,"Last Competition Match"]
[null,{"$f":"IFERROR(VLOOKUP($D$5&$D$7,Backbone!$A$3:$O$71,12,FALSE),\"\")","v":""},null,{"$f":"IFERROR(VLOOKUP($D$5&$D$7,Backbone!$A$3:$O$71,13,FALSE),\"\")","v":""},null,{"$f":"IFERROR(VLOOKUP($D$5&$D$7,Backbone!$A$3:$O$71,14,FALSE),\"\")","v":""},null,{"$f":"IFERROR(VLOOKUP($D$5&$D$7,Backbone!$A$3:$O$71,15,FALSE),\"\")","v":""}]
[]
[null,"EXPLANATION"]
[null,{"$f":"IFERROR(VLOOKUP($D$5&$D$7,Backbone!$A$3:$O$71,8,FALSE),\"\")","v":""}]

{"sheet":"Backbone","index":4,"n_rows":71,"n_cols":16,"rows_kept":71,"cut":false,"hidden":true,"merged":[[0,8,0,10],[0,11,0,12],[0,13,0,14],[0,0,1,0],[0,1,1,1],[0,3,1,3],[0,2,1,2],[0,4,1,4],[0,5,1,5],[0,6,1,6],[0,7,1,7]]}
[null,"CODE","Discpline","EVENT","REALLOC","LAR?","Ap?","LAR\nTEXT","Technical Meeting",null,null,"Start of Competition",null,"Last competition match",null,"COMPETITION SCHEDULE from"]
[null,null,null,null,null,null,null,null,"Name","Date","Time","Date","Time","Date","Time","2021.05.10"]
[{"$f":"B3&D3","v":"ARCIndividual"},"ARC","Archery","Individual","NO","YES","NO","LAR will be allowed up until the Technical Meeting. Any athlete for which an accreditation application has been submitted by the accreditation deadline may be used as a replacement provided that he/she is eligible. Further to the start of competition, no LAR is allowed.","Team Managers' Meeting","2021-07-22","14:00:00","2021-07-23","09:00:00","2021-07-31","16:45:00"]
[{"$f":"B4&D4","v":"ARCTeam"},"ARC","Archery","Team","NO","YES","NO","LAR will be allowed up until the Technical Meeting. Any athlete for which an accreditation application has been submitted by the accreditation deadline may be used as a replacement provided that he/she is eligible. Further to the start of competition, no LAR is allowed.","Team Managers' Meeting","2021-07-22","14:00:00","2021-07-24","09:30:00","2021-07-26","16:40:00"]
["ATHIndividual","ATH","Athletics","Individual","NO","YES","YES","LAR will be allowed up until the Technical Meeting. Any athlete for which an accreditation application has been submitted by the accreditation deadline may be used as a replacement provided that he/she is eligible and qualified. \n\nFurther to the start of competition and up until the final confirmation of athletes for a specific event, only Ap alternate athletes may be used as a replacement athlete. NOCs who have entered three (3) athletes in one event are entitled to one (1) Ap alternate athlete for the same event, provided that he/she is eligible and qualified. \n\nPlease note that the LAR process and approval might take up to 18 hours and must be concluded by the final confirmation of athletes for the respective event. ","Technical Meeting","2021-07-28","15:00:00","2021-07-30","09:00:00","2021-08-08","07:00:00"]
["ATHRelay","ATH","Athletics","Relay","NO","YES","YES","LAR will be allowed up until the Technical Meeting. Any athlete for which an accreditation application has been submitted by the accreditation deadline may be used as a replacement for either an Aa and/or an Ap athlete provided that he/she is eligible. \n\nFurther to the start of competition and up until the final confirmation of athletes, only Ap alternate athletes may be used as a replacement athlete. Every NOC entered in a Relay is entitled to one (1) Ap alternate athlete per relay event with the exception of Mixed Relay in which they are entitled to one (1) Ap alternate athlete per gender, for a total of two (2) Ap alternate athletes. \n\nPlease note that the LAR process and approval might take up to 18 hours and must be concluded by the final ","Technical Meeting","2021-07-28","15:00:00","2021-07-30","20:00:00","2021-08-07","21:50:00"]
["BDMIndividual","BDM","Badminton","Individual","YES","NO","NO","LAR is not applicable for nominal sports. In case of withdrawal (only for justified reasons as per IOC LAR Policy), the reallocation process will be initiated provided that there is sufficient time to conclude the process prior to the start of competition.","Team Managers' Meeting","2021-07-22","12:00:00","2021-07-24","09:00:00","2021-08-02","20:00:00"]
["BDMDoubles","BDM","Badminton","Doubles","YES","NO","NO","LAR is not applicable for nominal sports. In case of withdrawal (only for justified reasons as per IOC LAR Policy), the reallocation process will be initiated provided that there is sufficient time to conclude the process prior to the start of competition.","Team Managers' Meeting","2021-07-22","12:00:00","2021-07-24","09:00:00","2021-08-02","13:00:00"]
["BK3X3Team","BK3X3","Basketball 3x3","Team","YES","YES","NO","LAR will be allowed up until the Technical Meeting. Any athlete for which an accreditation application has been submitted by the accreditation deadline may be used as a replacement provided that he/she is eligible and is included in the pre-approved FIBA list. Further to the start of competition, no LAR is allowed.","Technical Meeting","2021-07-23","10:45:00","2021-07-24","10:15:00","2021-07-28","22:25:00"]
["BKBTeam","BKB","Basketball","Team","YES","YES","NO","LAR will be allowed up until the Technical Meeting. Any athlete for which an accreditation application has been submitted by the accreditation deadline may be used as a replacement provided that he/she is eligible and is included in the pre-approved FIBA list. Further to the start of competition, no LAR is allowed.","Technical Meeting","22 or 23 July 2021","15:00:00","2021-07-25","10:00:00","2021-08-08","11:30:00"]
["BMFIndividual","BMF","BMX Freestyle","Individual","NO","YES","YES","LAR will be allowed up until the Riders' Confirmation. Any athlete for which an accreditation application has been submitted by the accreditation deadline may be used as a replacement provided that he/she is eligible. \n\nAfter the Riders' Confirmation and up until 1 hour before the start of the competition, only Ap alternate athletes may be used as a replacement athlete. One (1) Ap alternate athlete will be allowed per event. Further to the start of competition, no replacement is allowed.\n\nPlease note that the LAR process and approval might take up to 18 hours and must be concluded by Riders' Confirmation.","Riders' Confirmation","2021-07-26","14:30:00","2021-07-31","10:10:00","2021-08-01","11:20:00"]
["BMXIndividual","BMX","BMX Racing","Individual","NO","YES","YES","LAR will be allowed up until the Riders' Confirmation. Any athlete for which an accreditation application has been submitted by the accreditation deadline may be used as a replacement provided that he/she is eligible. \n\nAfter the Riders' Confirmation and up until 1 hour before the start of the competition, only Ap alternate athletes may be used as a replacement athlete. One (1) Ap alternate athlete will be allowed per event. Further to the start of competition, no replacement is allowed.\n\nPlease note that the LAR process and approval might take up to 18 hours and must be concluded by Riders' Confirmation.","Riders' Confirmation","2021-07-24","12:00:00","2021-07-29","10:00:00","2021-07-30","11:50:00"]
["BOXIndividual","BOX","Boxing","Individual","YES","NO","NO","LAR is not applicable for nominal sports. In case of withdrawal (only for justified reasons as per IOC LAR Policy), the reallocation process will be initiated provided that there is sufficient time to conclude the process prior to the start of competition.","Sport Entry Check","2021-07-22","08:00:00","2021-07-24","11:00:00","2021-08-08","15:15:00"]
["BSBTeam","BSB","Baseball/Softball","Team","YES","YES","NO","LAR will be allowed up until the Technical Meeting. Any athlete for which an accreditation application has been submitted by the accreditation deadline may be used as a replacement provided that he/she is eligible and is included in the pre-approved WBSC list. Further to the start of competition, no LAR is allowed.\n\nTechnical Meetings:\n(Baseball) Fukushima: 27-Jul-2021 14:00\n(Baseball) Yokohama: 28-Jul-2021 14:00\n(Softball) Fukushima: 20-Jul-2021 14:00","Softball technical meeting (Fukushima)\nBaseball technical meeting (Fukushima)\nBaseball technical meeting (Yokohama)","See below","See below","2021-07-21","09:00:00","2021-08-07","19:00:00"]
["CLBIndividual","CLB","Sports Climbing","Individual","YES","NO","NO","LAR is not applicable for nominal sports. In case of withdrawal (only for justified reasons as per IOC LAR Policy), the reallocation process will be initiated provided that there is sufficient time to conclude the process prior to the start of competition.","Team Leaders' Meeting","2021-08-02","11:00:00","2021-08-03","17:00:00","2021-08-06","21:10:00"]
["CRDRoad Race","CRD","Cycling Road","Road Race","NO","YES","NO","LAR will be allowed up until the Rider’s Confirmation. Any athlete for which an accreditation application has been submitted by the accreditation deadline may be used as a replacement provided that he/she is eligible. Further to the start of competition, no LAR is allowed.","Team Leaders' Meeting","2021-07-23","10:45:00","2021-07-24","11:00:00","2021-07-25","13:00:00"]
["CRDTime Trial","CRD","Cycling Road","Time Trial","NO","YES","NO","LAR will be allowed up until the Rider’s Confirmation. Any athlete for which an accreditation application has been submitted by the accreditation deadline may be used as a replacement provided that he/she is eligible. Further to the start of competition, no LAR is allowed.","Team Leaders' Meeting","2021-07-27","10:15:00","2021-07-28","11:30:00","2021-07-28","14:00:00"]
["CSLSingle","CSL","Canoe Slalom","Single","NO","YES","NO","LAR will be allowed up until two (2) hours prior to the start of the competition for the relevant event. Any athlete for which an accreditation application has been submitted by the accreditation deadline may be used as a replacement provided that he/she is eligible. ","Team Leaders' Meeting","2021-07-22","17:30:00","2021-07-25","13:00:00","2021-07-30","16:00:00"]
["CSPIndividual","CSP","Canoe Sprint","Individual","NO","YES","NO","LAR will be allowed up until one (1) hour prior to the start of the competition for the relevant event. Any athlete for which an accreditation application has been submitted by the accreditation deadline may be used as a replacement provided that he/she is eligible. ","Team Leaders' Meeting","2021-07-31","12:00:00","2021-08-02","09:30:00","2021-08-07","11:39:00"]
["CSPGroup","CSP","Canoe Sprint","Group","NO","YES","NO","LAR will be allowed up until one (1) hour prior to the start of the competition for the relevant event. Any athlete for which an accreditation application has been submitted by the accreditation deadline may be used as a replacement provided that he/she is eligible. ","Team Leaders' Meeting","2021-07-31","12:00:00","2021-08-02","10:05:00","2021-08-07","12:19:00"]
["CTRIndividual","CTR","Cycling Track","Individual","NO","YES","NO","LAR will be allowed up until two (2) hours prior to the Rider's Confirmation Meeting. Any athlete for which an accreditation application has been submitted by the accreditation deadline may be used as a replacement provided that he/she is eligible. \n\nPlease note that the LAR process and approval might take up to 18 hours and must be concluded by the Rider's Confirmation Meeting.","Team Leaders' Meeting","2021-08-01","18:00:00","2021-08-04","15:30:00","2021-08-08","12:25:00"]
["CTRTeam","CTR","Cycling Track","Team","NO","YES","YES","LAR will be allowed up until two (2) hours prior to the Rider's Confirmation Meeting. Any athlete for which an accreditation application has been submitted by the accreditation deadline may be used as a replacement for either an Aa and/or an Ap athlete provided that he/she is eligible. \n\nFurther to the start of competition and up to the confirmation of the team composition, only Ap alternate athletes may be used as a replacement athlete. One (1) Ap alternate athlete will be allowed per team event. \n\nPlease note that the LAR process and approval might take up to 18 hours and must be concluded by the Rider's Confirmation Meeting.","Team Leaders' Meeting","2021-08-01","18:00:00","2021-08-02","15:30:00","2021-08-07","16:55:00"]
["DIVSynchronised","DIV","Diving","Synchronised","NO","YES","NO","LAR will be allowed up until the Team Leaders’ Meeting. Any athlete for which an accreditation application has been submitted by the accreditation deadline may be used as a replacement provided that he/she is eligible. Further to the start of competition, no LAR is allowed.\n\nPlease note that the LAR process and approval might take up to 18 hours and must be concluded by the final confirmation of athletes for the respective event.","Chefs d'Equipe Meeting","2021-07-25","15:00:00","2021-07-25","15:00:00","2021-07-28","15:00:00"]
["DIVIndividual","DIV","Diving","Individual","NO","YES","NO","LAR will be allowed up until the Team Leaders’ Meeting. Any athlete for which an accreditation application has been submitted by the accreditation deadline may be used as a replacement provided that he/she is eligible. Further to the start of competition, no LAR is allowed.\n\nPlease note that the LAR process and approval might take up to 18 hours and must be concluded by the final confirmation of athletes for the respective event.","Chefs d'Equipe Meeting","2021-07-25","15:00:00","2021-07-30","15:00:00","2021-08-07","15:00:00"]
["EQUDressage Individual","EQU","Equestrian","Dressage Individual","NO","YES","NO","LAR for athletes and/or horses will be allowed up until one (1) hour prior to the First Horse Inspection. Any athlete for which an accreditation application has been submitted by the accreditation deadline may be used as a replacement for either an Aa and/or an Ap athlete provided that he/she is eligible and included in the FEI nominated Entries/Certificates of Capability list.\n\nLAR using an Ap alternate athlete will be permitted in the period between the Declaration of Starters and up to two (2) hours before the First Competition and can only occur with athletes and/or horses already in the Olympic stables. One (1) Ap alternate athlete and/or horse will be allowed per qualified team. \n\nPlease note that the LAR process and approval might take up to 18 hours and must be concluded by the final confirmation of athletes for the respective event.","Chefs d'Equipe Meeting","2021-07-23","12:30:00","2021-07-24","17:00:00","2021-07-28","17:30:00"]
["EQUDressage Group","EQU","Equestrian","Dressage Group","NO","YES","YES","LAR for athletes and/or horses will be allowed up until one (1) hour prior to the First Horse Inspection. Any athlete for which an accreditation application has been submitted by the accreditation deadline may be used as a replacement for either an Aa and/or an Ap athlete provided that he/she is eligible and included in the FEI nominated Entries/Certificates of Capability list.\n\nLAR using an Ap alternate athlete will be permitted in the period between the Declaration of Starters and up to two (2) hours before the First Competition and can only occur with athletes and/or horses already in the Olympic stables. One (1) Ap alternate athlete and/or horse will be allowed per qualified team. \n\nPlease note that the LAR process and approval might take up to 18 hours and must be concluded by the final confirmation of athletes for the respective event.","Chefs d'Equipe Meeting","2021-07-23","12:30:00","2021-07-24","17:00:00","2021-07-27","17:00:00"]
["EQUEventing Individual","EQU","Equestrian","Eventing Individual","NO","YES","NO","LAR for athletes and/or horses will be allowed up until one (1) hour prior to the First Horse Inspection. Any athlete for which an accreditation application has been submitted by the accreditation deadline may be used as a replacement for either an Aa and/or an Ap athlete provided that he/she is eligible and included in the FEI nominated Entries/Certificates of Capability list.\n\nLAR using an Ap alternate athlete will be permitted in the period between the Declaration of Starters and up to two (2) hours before the First Competition and can only occur with athletes and/or horses already in the Olympic stables. One (1) Ap alternate athlete and/or horse will be allowed per qualified team. \n\nPlease note that the LAR process and approval might take up to 18 hours and must be concluded by the final confirmation of athletes for the respective event.","Chefs d'Equipe meeting","2021-07-28","09:45:00","2021-07-30","08:30:00","2021-08-02","20:45:00"]
["EQUEventing Group","EQU","Equestrian","Eventing Group","NO","YES","YES","LAR for athletes and/or horses will be allowed up until one (1) hour prior to the First Horse Inspection. Any athlete for which an accreditation application has been submitted by the accreditation deadline may be used as a replacement for either an Aa and/or an Ap athlete provided that he/she is eligible and included in the FEI nominated Entries/Certificates of Capability list.\n\nLAR using an Ap alternate athlete will be permitted in the period between the Declaration of Starters and up to two (2) hours before the First Competition and can only occur with athletes and/or horses already in the Olympic stables. One (1) Ap alternate athlete and/or horse will be allowed per qualified team. \n\nPlease note that the LAR process and approval might take up to 18 hours and must be concluded by the final confirmation of athletes for the respective event.","Chefs d'Equipe meeting","2021-07-28","09:45:00","2021-07-30","08:30:00","2021-08-02","17:00:00"]
["EQUJumping Individual","EQU","Equestrian","Jumping Individual","NO","YES","NO","LAR for athletes and/or horses will be allowed up until one (1) hour prior to the First Horse Inspection. Any athlete for which an accreditation application has been submitted by the accreditation deadline may be used as a replacement for either an Aa and/or an Ap athlete provided that he/she is eligible and included in the FEI nominated Entries/Certificates of Capability list.\n\nLAR using an Ap alternate athlete will be permitted in the period between the Declaration of Starters and up to two (2) hours before the First Competition and can only occur with athletes and/or horses already in the Olympic stables. One (1) Ap alternate athlete and/or horse will be allowed per qualified team. \n\nBetween the Individual and Team competition, teams will be able to reshuffle the team, reselecting who will be the “Aa” athletes and who will be the “Ap” athlete before the start of the team competition.\n\nPlease note that the LAR process and approval might take up to 18 hours and must be concluded by the final confirmation of athletes for the respective event.","Chefs d'Equipe meeting","2021-07-31","20:00:00","2021-08-03","19:00:00","2021-08-04","19:00:00"]
["EQUJumping Group","EQU","Equestrian","Jumping Group","NO","YES","YES","LAR for athletes and/or horses will be allowed up until one (1) hour prior to the First Horse Inspection. Any athlete for which an accreditation application has been submitted by the accreditation deadline may be used as a replacement for either an Aa and/or an Ap athlete provided that he/she is eligible and included in the FEI nominated Entries/Certificates of Capability list.\n\nLAR using an Ap alternate athlete will be permitted in the period between the Declaration of Starters and up to two (2) hours before the First Competition and can only occur with athletes and/or horses already in the Olympic stables. One (1) Ap alternate athlete and/or horse will be allowed per qualified team. \n\nBetween the Individual and Team competition, teams will be able to reshuffle the team, reselecting who will be the “Aa” athletes and who will be the “Ap” athlete before the start of the team competition.\n\nPlease note that the LAR process and approval might take up to 18 hours and must be concluded by the final confirmation of athletes for the respective event.","Chefs d'Equipe Meeting","2021-07-31","20:00:00","2021-08-06","19:00:00","2021-08-07","19:00:00"]
["FBLTeam","FBL","Football","Team","YES","YES","YES","LAR will be allowed up until twenty-four (24) hours prior to the team’s first match. Any athlete for which an accreditation application has been submitted by the accreditation deadline may be used as a replacement for either an Aa and/or an Ap athlete provided that he/she is eligible. \n\nFurther to the start of competition and up until the final, only Ap alternate athletes may be used as a replacement athlete. Four (4) Ap alternate athletes will be allowed per qualified team provided that they are eligible and included in the provisional list of fifty (50) players confirmed by FIFA. \n\nPlease note that the LAR process and approval might take up to 18 hours and must be concluded by the final confirmation of athletes for the respective event.\n\nTeam Arrival Meetings (TAM):\nSapporo Dome (SDO): (M) 19-Jul-2021 (W) 18-Jul-2021\nMiyagi Stadium (MIS): (M) N/A (W) 18-Jul-2021\nIbaraki Kashima Stadium (IKS): (M) 19-Jul-2021 (W) N/A \nTokyo Stadium (TOS): (M) 19-Jul-21 (W) 18-Jul-2021 \nInternational Stadium Yokohama (ISY): (M) 19-Jul-2021 (W) N/A","Team Arrival Meeting (TAM)","See below","See below","2021-07-21","16:30:00","2021-08-07","20:30:00"]
["FENIndividual","FEN","Fencing","Individual","NO","YES","YES","LAR is only allowed for slots allocated to an NOC, and will be allowed up until forty-eight (48) hours prior to the Team Leaders' Meeting. Any athlete for which an accreditation application has been submitted by the accreditation deadline may be used as a replacement for either an Aa and/or an Ap athlete provided that he/she is eligible. \n\nAfter this date and time, only Ap alternate athletes may be used as a replacement athlete. One (1) Ap alternate athlete will be allowed per team. LAR using an Ap alternate athlete can occur up until forty-eight (48) hours prior to the start of competition of the individual event that corresponds to the team event. \n\nPlease note that the LAR process and approval might take up to 18 hours and must be concluded by the final confirmation of athletes for the respective event.","Team Leaders' Meeting","2021-07-22","14:00:00","2021-07-24","09:00:00","2021-07-26","21:23:00"]
["FENTeam","FEN","Fencing","Team","NO","YES","YES","LAR is only allowed for slots allocated to an NOC, and will be allowed up until forty-eight (48) hours prior to the Team Leaders' Meeting. Any athlete for which an accreditation application has been submitted by the accreditation deadline may be used as a replacement for either an Aa and/or an Ap athlete provided that he/she is eligible. \n\nAfter this date and time, only Ap alternate athletes may be used as a replacement athlete. One (1) Ap alternate athlete will be allowed per team. LAR using an Ap alternate athlete can occur at any time during competition.","Team Leaders' Meeting","2021-07-22","14:00:00","2021-07-27","10:00:00","2021-08-01","19:50:00"]
["GARIndividual","GAR","Artistic Gymnastics","Individual","NO","YES","NO","LAR is only allowed for slots allocated to an NOC, and only up until twenty-four (24) hours prior to the beginning of Competition I (qualifications). Any athlete for which an accreditation application has been submitted by the accreditation deadline may be used as replacement provided he/she is eligible.\n\nPlease note that the LAR process and approval might take up to 18 hours and must be concluded by the final confirmation of athletes for the respective event.","Orientation Meeting","2021-07-20","19:00:00","2021-07-24","10:00:00","2021-08-03","17:00:00"]
["GARTeam","GAR","Artistic Gymnastics","Team","NO","YES","NO","LAR is only allowed for slots allocated to an NOC, and only up until twenty-four (24) hours prior to the beginning of Competition I (qualifications). Any athlete for which an accreditation application has been submitted by the accreditation deadline may be used as replacement provided he/she is eligible.\n\nPlease note that the LAR process and approval might take up to 18 hours and must be concluded by the final confirmation of athletes for the respective event.","Orientation Meeting","2021-07-20","19:00:00","2021-07-24","10:00:00","2021-07-27","19:45:00"]
["GLFIndividual","GLF","Golf","Individual","YES","NO","NO","LAR is not applicable for nominal sports. In case of withdrawal (only for justified reasons as per IOC LAR Policy), the reallocation process will be initiated provided that there is sufficient time to conclude the process prior to the start of competition.\n\nTeam Leaders' Meeting:\n(M) 26-Jul-2021, 14:00\n(W) 02-Aug-2021, 14:00","Team Leaders' Meeting","See below","See below","2021-07-29","07:30:00","2021-08-07","07:30:00"]
["GRYIndividual","GRY","Rhythmic Gymnastics","Individual","NO","YES","NO","LAR is only allowed for slots allocated to an NOC, and only up until twenty-four (24) hours prior to the beginning of Competition I (qualifications). Any athlete for which an accreditation application has been submitted by the accreditation deadline may be used as replacement provided he/she is eligible.\n\nPlease note that the LAR process and approval might take up to 18 hours and must be concluded by the final confirmation of athletes for the respective event.","Orientation Meeting","2021-08-04","12:30:00","2021-08-06","10:20:00","2021-08-07","15:20:00"]
["GRYGroup","GRY","Rhythmic Gymnastics","Group","NO","YES","NO","LAR is only allowed for slots allocated to an NOC, and only up until twenty-four (24) hours prior to the beginning of Competition I (qualifications). Any athlete for which an accreditation application has been submitted by the accreditation deadline may be used as replacement provided he/she is eligible.\n\nPlease note that the LAR process and approval might take up to 18 hours and must be concluded by the final confirmation of athletes for the respective event.","Orientation Meeting","2021-08-04","12:30:00","2021-08-07","10:00:00","2021-08-08","11:00:00"]
["GTRIndividual","GTR","Trampoline","Individual","NO","YES","NO","LAR is only allowed for slots allocated to an NOC, and only up until twenty-four (24) hours prior to the beginning of Competition I (qualifications). Any athlete for which an accreditation application has been submitted by the accreditation deadline may be used as replacement provided he/she is eligible.\n\nPlease note that the LAR process and approval might take up to 18 hours and must be concluded by the final confirmation of athletes for the respective event.","Orientation Meeting","2021-07-28","12:30:00","2021-07-30","13:00:00","2021-07-31","13:00:00"]
["HBLTeam","HBL","Handball","Team","YES","YES","YES","LAR will be allowed up until the Technical Meeting. Any athlete for which an accreditation application has been submitted by the accreditation deadline may be used as a replacement for either an Aa and/or an Ap athlete provided that he/she is eligible. \n\nFurther to the start of competition and up until the final, only Ap alternate athletes may be used as a replacement athlete. One (1) Ap alternate athlete will be allowed per qualified team provided that he/she is eligible and included in the provisional list of 28 players confirmed by IHF. LAR using an Ap alternate athlete can only be performed before a match and applies up until the Final.\n\nAs an exception, further to the Technical Meeting, it will be possible to: \n•\tReplace one player with any player from the provisional list (list of 28) up until the quarterfinals.\n•\tReplace a goalkeeper with another goalkeeper included on the Tokyo 2020 long list and the IHF provisional ‘list of 28’ up until the final once.\n•\tReplace any player with the one Ap alternate athlete up until the final.\n\nPlease note that the LAR process and approval might take up to 18 hours and must be concluded by the final confirmation of athletes for the respective event.","Technical Meeting","2021-07-23","10:00:00","2021-07-24","09:00:00","2021-08-08","15:00:00"]
["HOCTeam","HOC","Hockey","Team","YES","YES","YES","LAR will be allowed up until the Event Briefing. Any athlete for which an accreditation application has been submitted by the accreditation deadline may be used as a replacement for either an Aa and/or an Ap athlete provided that he/she is eligible. \n\nFurther to the start of competition and up until the final, only Ap alternate athletes may be used as a replacement athlete. Two (2) Ap alternate athletes will be allowed per team. LAR using an Ap alternate athlete can only be performed before a match and applies up until the Final. \n\nAs an exception, a goalkeeper can be replaced by an eligible athlete (goalkeeper) from the accreditation long list up until the start of the final day of the competition.\n\nPlease note that the LAR process and approval might take up to 18 hours and must be concluded by the final confirmation of athletes for the respective event.","Event Briefing","2021-07-23","10:30:00","2021-07-24","09:30:00","2021-08-06","19:00:00"]
["JUDIndividual","JUD","Judo","Individual","YES","NO","NO","LAR is not applicable for nominal sports. In case of withdrawal (only for justified reasons as per IOC LAR Policy), the reallocation process will be initiated provided that there is sufficient time to conclude the process prior to the start of competition.","Technical Meeting","2021-07-22","14:00:00","2021-07-24","11:00:00","2021-07-30","19:09:00"]
["KTEIndividual","KTE","Karate","Individual","YES","NO","NO","LAR is not applicable for nominal sports. In case of withdrawal (only for justified reasons as per IOC LAR Policy), the reallocation process will be initiated provided that there is sufficient time to conclude the process prior to the start of competition.","Coach Meeting and Draw","2021-08-04","16:00:00","2021-08-05","10:00:00","2021-08-07","20:05:00"]
["MPNIndividual","MPN","Modern Pentathlon","Individual","YES","NO","NO","LAR is not applicable for nominal sports. In case of withdrawal (only for justified reasons as per IOC LAR Policy), the reallocation process will be initiated provided that there is sufficient time to conclude the process prior to the start of competition.\n\nAs an exception, for NOCs that qualified more than 2 athletes, a LAR using a non-accredited qualified athlete will be allowed up until the Technical Meeting. \n\nPlease note that the LAR process and approval might take up to 18 hours and must be concluded by the final confirmation of athletes for the respective event.","Technical Meeting","2021-08-04","13:00:00","2021-08-05","13:00:00","2021-08-07","19:30:00"]
["MTBIndividual","MTB","Mountain Bike","Individual","NO","YES","NO","LAR will be allowed up until the Team Leaders' Meeting. Any athlete for which an accreditation application has been submitted by the accreditation deadline may be used as a replacement provided that he/she is eligible. Further to the start of competition, no LAR is allowed.\n\nPlease note that the LAR process and approval might take up to 18 hours and must be concluded by the final confirmation of athletes for the respective event.","Team Leaders' Meeting","2021-07-25","17:00:00","2021-07-26","15:00:00","2021-07-27","15:00:00"]
["OWSIndividual","OWS","Marathon Swimming","Individual","YES","NO","NO","LAR is not applicable for nominal sports. In case of withdrawal (only for justified reasons as per IOC LAR Policy), the reallocation process will be initiated provided that there is sufficient time to conclude the process prior to the start of competition.","Team Leaders' Meeting","2021-08-02","18:00:00","2021-08-04","06:30:00","2021-08-05","06:30:00"]
["ROWIndividual","ROW","Rowing","Individual","NO","YES","NO","LAR will be allowed up until three (3) hours prior to the Team Leaders' Meeting and Draw. Any athlete for which an accreditation application has been submitted by the accreditation deadline may be used as a replacement provided that he/she is eligible. Further to the start of competition, no LAR is allowed.","Team Leaders' Meeting and Draw","2021-07-21","15:30:00","2021-07-23","08:30:00","2021-07-30","09:45:00"]
["ROWTeam","ROW","Rowing","Team","NO","YES","YES","LAR will be allowed up until three (3) hours prior to the Team Leaders' Meeting and Draw. Any athlete for which an accreditation application has been submitted by the accreditation deadline may be used as a replacement for either an Aa and/or an Ap athlete provided that he/she is eligible. After this date and time, only Ap alternate athletes may be used as a replacement athlete.\nEach qualified boat in the following events are entitled to one (1) Ap alternate athlete: Men’s Four (4-) , Men’s Quadruple Sculls (4x), Men’s Eight (8+), Women’s Four (4-), Women’s Quadruple Sculls (4x), Women’s Eight (8+).\nHowever, if an NOC qualifies both in the Four (4-) and Eight (8+) events of the same gender, they are only entitled to one (1) Ap alternate athlete between the two boats. Thus, the maximum number of Ap alternate athletes is two (2) per gender across all events, totalling four (4) Ap alternate athletes per NOC.\nLAR using an Ap alternate athlete will be allowed up until the end of the competition.\n\nPlease note that if an NOC needs to replace an Ap alternate athlete, they need to do so only through the Accreditation department as Rowing Ap alternate athletes are not captured in Sports Entries.  ","Team Leaders' Meeting and Draw","2021-07-21","15:30:00","2021-07-23","10:30:00","2021-07-30","10:25:00"]
["RUGTeam","RUG","Rugby","Team","YES","YES","YES","LAR will be allowed up until the Technical Meeting. Any athlete for which an accreditation application has been submitted by the accreditation deadline may be used as a replacement for either an Aa and/or an Ap athlete provided that he/she is eligible. \n\nFurther to the start of competition LAR is allowed only by using an Ap Alternate athlete. One (1) Ap alternate athlete will be allowed per team.  \n\nPlease note that the LAR process and approval might take up to 18 hours and must be concluded by the final confirmation of athletes for the respective event.\n\nTechnical Meetings:\n(M) 24-Jul-2021, 20:00\n(W) 27-Jul-2021, 20:00","Technical Meeting","See below","See below","2021-07-26","09:00:00","2021-07-31","18:00:00"]
["SALIndividual","SAL","Sailing","Individual","NO","YES","NO","LAR will be allowed up until the Technical Meeting. Any athlete for which an accreditation application has been submitted by the accreditation deadline may be used as a replacement provided that he/she is eligible. Further to the start of competition, no LAR is allowed.","Technical Meeting","2021-07-20","09:00:00","2021-07-25","12:00:00","2021-08-03","14:30:00"]
["SALGroup","SAL","Sailing","Group","NO","YES","NO","LAR will be allowed up until the Technical Meeting. Any athlete for which an accreditation application has been submitted by the accreditation deadline may be used as a replacement provided that he/she is eligible. Further to the start of competition, no LAR is allowed.","Technical Meeting","2021-07-20","09:00:00","2021-07-27","12:00:00","2021-08-04","15:30:00"]
["SHOIndividual","SHO","Shooting","Individual","NO","YES","NO","LAR is only allowed for slots allocated to an NOC and will be allowed up until the Technical Meeting. Any athlete for which an accreditation application has been submitted by the accreditation deadline may be used as a replacement provided that he/she is eligible. Further to the start of competition, no LAR is allowed.","Technical Meeting","2021-07-22","14:30:00","2021-07-24","08:30:00","2021-08-02","16:50:00"]
["SHOTeam","SHO","Shooting","Team","NO","YES","NO","LAR is only allowed for slots allocated to an NOC and will be allowed up until the Technical Meeting. Any athlete for which an accreditation application has been submitted by the accreditation deadline may be used as a replacement provided that he/she is eligible. Further to the start of competition, no LAR is allowed.","Technical Meeting","2021-07-22","14:30:00","2021-07-27","09:00:00","2021-07-31","13:30:00"]
["SKBIndividual","SKB","Skateboarding","Individual","YES","NO","NO","LAR is not applicable for nominal sports. In case of withdrawal (only for justified reasons as per IOC LAR Policy), the reallocation process will be initiated provided that there is sufficient time to conclude the process prior to the start of competition.\n\n1st Meetings:\n(Street) 20-Jul-2021, 17:00\n(Park) 30-Jul-2021, 17:00","1st Meeting","See below","See below","2021-07-25","09:00:00","2021-08-05","12:30:00"]
["SRFIndividual","SRF","Surfing","Individual","YES","NO","NO","LAR is not applicable for nominal sports. In case of withdrawal (only for justified reasons as per IOC LAR Policy), the reallocation process will be initiated provided that there is sufficient time to conclude the process prior to the start of competition.","Entry Status Confirmation Meeting","2021-07-23","07:00:00","2021-07-25","07:00:00","2021-07-28","10:15:00"]
["SWADuet","SWA","Artistic Swimming","Duet","NO","YES","NO","LAR will be allowed up until the Technical Meeting. Any athlete for which an accreditation application has been submitted by the accreditation deadline may be used as a replacement provided that she is eligible. Further to the start of competition, no LAR is allowed.","Team Leaders' Meeting","2021-08-01","10:00:00","2021-08-02","19:30:00","2021-08-04","19:30:00"]
["SWATeam","SWA","Artistic Swimming","Team","NO","YES","YES","LAR will be allowed up until the Technical Meeting. Any athlete for which an accreditation application has been submitted by the accreditation deadline may be used as a replacement for either an Aa and/or an Ap athlete provided that he/she is eligible. \n\nFurther to the start of competition and up until the final performance, only Ap alternate athletes may be used as a replacement athlete. One (1) Ap alternate athlete will be allowed per team. \n\nPlease note that the LAR process and approval might take up to 18 hours and must be concluded by the final confirmation of athletes for the respective event.","Team Leaders' Meeting","2021-08-01","10:00:00","2021-08-06","19:30:00","2021-08-07","19:30:00"]
["SWMIndividual","SWM","Swimming","Individual","YES","NO","NO","LAR is not applicable for nominal sports. In case of withdrawal (only for justified reasons as per IOC LAR Policy), the reallocation process will be initiated provided that there is sufficient time to conclude the process prior to the start of competition.","Team Leaders' Meeting","2021-07-22","16:00:00","2021-07-24","19:00:00","2021-08-01","10:44:00"]
["SWMRelay","SWM","Swimming","Relay","YES","NO","NO","LAR is not applicable for nominal sports. In case of withdrawal (only for justified reasons as per IOC LAR Policy), the reallocation process will be initiated provided that there is sufficient time to conclude the process prior to the start of competition.","Team Leaders' Meeting","2021-07-22","16:00:00","2021-07-24","19:00:00","2021-08-01","11:36:00"]
["TENSingles","TEN","Tennis","Singles","YES","NO","NO","LAR is not applicable for nominal sports. In case of withdrawal (only for justified reasons as per IOC LAR Policy), the reallocation process will be initiated provided that there is sufficient time to conclude the process prior to the start of competition.","Team Leaders' Meeting","2021-07-22","14:00:00","2021-07-24","11:00:00","2021-08-01","12:00:00"]
["TENDoubles","TEN","Tennis","Doubles","YES","NO","NO","LAR is not applicable for nominal sports. In case of withdrawal (only for justified reasons as per IOC LAR Policy), the reallocation process will be initiated provided that there is sufficient time to conclude the process prior to the start of competition.","Team Leaders' Meeting","2021-07-22","14:00:00","2021-07-24","11:00:00","2021-08-01","12:00:00"]
["TKWIndividual","TKW","Taekwondo","Individual","NO","YES","NO","LAR will be allowed up until two (2) hours prior to the Team Leaders' Meeting. Any athlete for which an accreditation application has been submitted by the accreditation deadline may be used as a replacement provided that he/she is eligible. Further to the start of competition, no LAR is allowed.","Team Leaders' Meeting","2021-07-22","14:00:00","2021-07-24","10:00:00","2021-07-27","21:45:00"]
["TRIIndividual","TRI","Triathlon","Individual","NO","YES","NO","LAR will be allowed up until the Coaches' Meeting prior to the start of the Individual Triathlon Competition.  Any athlete may be used as a replacement provided that he/she is included on the ACR long list and fulfills all eligibility requirements. Further to the start of competition, no LAR is allowed. Prior to the replacement, the athlete on the long list will not have access to training or competition venue and is not part of the official NOC Delegation. He/she will not be captured in the SEQ system before the replacement occurs.\n\nThe e-LAR needs to be initiated by 22th July 2021, 19:00pm as it must be concluded by the Coaches' Meeting prior to the start of the Individual Triathlon Competition. Exceptions to this are the Covid-19 related replacement requests, which may be initiated until 12:00pm the day before the competition. Further to the start of competition, no LAR is allowed.\n\nAll medical evidence (x-rays, medical diagnosis etc.) related to the replacement needs to be submitted through the e-LAR tool with the LAR application. The application of replacement, the medical files, and the athlete (if needed) will be assessed by a panel composed of an IOC Medical expert and the World Triathlon Medical Delegate.","Coaches' Meeting","2021-07-23","09:00:00","2021-07-26","06:30:00","2021-07-27","06:30:00"]
["TRIMixed Relay","TRI","Triathlon","Mixed Relay","NO","YES","NO","NOCs may request a replacement of an athlete due to medical reasons after the Triathlon Individual Competitions, provided the NOC has the necessary quota to compete in the Triathlon Mixed Relay Competition.\n\nLAR will be allowed up until the Coaches' Meeting prior to the start of the Mixed Relay Triathlon Competition. Any athlete may be used as a replacement provided that he/she is included on the ACR long list and fulfills all eligibility requirements. Prior to the replacement, the athlete on the long list will not have access to training or competition venue and is not part of the official NOC Delegation. He/she will not be captured in the SEQ system before the replacement occurs.\n\nThe e-LAR needs to be initiated by 28th July 2021, 18:30pm as it must be concluded by the Coaches' Meeting prior to the start of the Mixed Relay Triathlon Competition. Exceptions to this are the Covid-19 related replacement requests, which may be initiated until 12:00pm the day before the competition. Further to the start of competition, no LAR is allowed.\n\nAll medical evidence (x-rays, medical diagnosis etc.) related to the replacement needs to be submitted through the e-LAR tool with the LAR application. The application of replacement, the medical files, and the athlete (if needed) will be assessed by a panel composed of an IOC Medical expert and the World Triathlon Medical Delegate.","Coaches' Meeting","2021-07-29","08:30:00","2021-07-31","07:30:00","2021-07-31","07:30:00"]
["TTEIndividual","TTE","Table Tennis","Individual","YES","NO","NO","LAR is not applicable for nominal sports. In case of withdrawal (only for justified reasons as per IOC LAR Policy), the reallocation process will be initiated provided that there is sufficient time to conclude the process prior to the start of competition.","Team Leaders' Meeting","2021-07-21","17:00:00","2021-07-24","09:00:00","2021-07-30","21:00:00"]
["TTETeam","TTE","Table Tennis","Team","NO","YES","YES","LAR will be allowed up until the Team Leaders' Meeting. Any athlete for which an accreditation application has been submitted by the accreditation deadline may be used as a replacement for either an Aa and/or an Ap athlete provided that he/she is eligible. \n\nFurther to the start of competition and up until the end of the team competition, only Ap alternate athletes may be used as a replacement athlete. One (1) Ap alternate athlete will be allowed per team. \n\nPlease note that the LAR process and approval might take up to 18 hours and must be concluded by the final confirmation of athletes for the respective event.","Team Leaders' Meeting","2021-07-22","17:00:00","2021-07-24","11:15:00","2021-08-06","19:30:00"]
["VBVDoubles","VBV","Beach Volleyball","Doubles","NO","YES","NO","LAR will be allowed up until the conclusion of the Preliminary Inquiry. Any athlete for which an accreditation application has been submitted by the accreditation deadline may be used as replacement provided that he/she is eligible. Further to the start of competition, no LAR is allowed.\n\nPlease note that the LAR process and approval might take up to 18 hours and must be concluded by the final confirmation of athletes for the respective event.","Preliminary Enquiry","2021-07-23","09:30:00","2021-07-24","09:00:00","2021-08-07","11:30:00"]
["VVOTeam","VVO","Volleyball","Team","YES","YES","NO","LAR will be allowed up until the First Daily Bulletin. Up to two (2) athletes for which an accreditation application has been submitted by the accreditation deadline may be used as a replacement provided that they are eligible and in the pre-approved FIVB list. Further to the start of competition, no LAR is allowed.\n\nPlease note that the LAR process and approval might take up to 18 hours and must be concluded by the final confirmation of athletes for the respective event.","before Daily Bulletin #1 is published","2021-07-22","20:00:00","2021-07-24","09:00:00","2021-08-08","13:30:00"]
[{"$f":"B69&D69","v":"WLFIndividual"},"WLF","Weightlifting","Individual","YES","NO","NO","LAR is not applicable for nominal sports. In case of withdrawal (only for justified reasons as per IOC LAR Policy), the reallocation process will be initiated provided that there is sufficient time to conclude the process prior to the start of competition.","Verification of Final Entries Meeting","2021-07-22","10:00:00","2021-07-24","09:50:00","2021-08-04","19:50:00"]
[{"$f":"B70&D70","v":"WPOTeam"},"WPO","Water Polo","Team","YES","YES","YES","LAR will be allowed up until the Technical Meeting. Any athlete for which an accreditation application has been submitted by the accreditation deadline may be used as a replacement for either an Aa and/or an Ap athlete provided that he/she is eligible and is included in the pre-approved FINA list. \n\nFurther to the start of competition, only Ap alternate athletes may be used as a replacement athlete. One (1) Ap alternate athlete will be allowed per team.  LAR using an Ap alternate athlete is allowed up until team composition of every match. By no later than 8:30am of each competition day, each team must confirm which 12 athletes will be used in their game on that day. LAR applications can happen on site and they will be facilitated by dedicated TOCOG Entries staff at the venue.","Technical Meeting","2021-07-22","14:00:00","2021-07-24","14:00:00","2021-08-08","16:30:00"]
[{"$f":"B71&D71","v":"WREIndividual"},"WRE","Wrestling","Individual","NO","YES","NO","LAR will be allowed up until midday (12:00 PM) of the day before the competition day of the concerned weight category. Any athlete for which an accreditation application has been submitted by the accreditation deadline may be used as replacement provided that he/she is eligible. Further to the start of competition, no LAR is allowed. \n\nPlease note that the LAR process and approval might take up to 18 hours and must be concluded by the final confirmation of athletes for the respective event. ","Technical Meeting","2021-07-31","13:00:00","2021-08-01","11:00:00","2021-08-07","21:20:00"]

{"sheet":"Dropdown","index":5,"n_rows":9,"n_cols":47,"rows_kept":9,"cut":false,"hidden":true,"merged":[]}
[]
[null,"Archery","Athletics","Badminton","Basketball 3x3","Basketball","BMX Freestyle","BMX Racing","Boxing","Baseball/Softball","Sports Climbing","Cycling Road","Canoe Slalom","Canoe Sprint","Cycling Track","Diving","Equestrian","Football","Fencing","Artistic Gymnastics","Golf","Rhythmic Gymnastics","Trampoline","Handball","Hockey","Judo","Karate","Modern Pentathlon","Mountain Bike","Marathon Swimming","Rowing","Rugby","Sailing","Shooting","Skateboarding","Surfing","Artistic Swimming","Swimming","Tennis","Taekwondo","Triathlon","Table Tennis","Beach Volleyball","Volleyball","Weightlifting","Water Polo","Wrestling"]
[null,"ARC","ATH","BDM","BK3X3","BKB","BMF","BMX","BOX","BSB","CLB","CRD","CSL","CSP","CTR","DIV","EQU","FBL","FEN","GAR","GLF","GRY","GTR","HBL","HOC","JUD","KTE","MPN","MTB","OWS","ROW","RUG","SAL","SHO","SKB","SRF","SWA","SWM","TEN","TKW","TRI","TTE","VBV","VVO","WLF","WPO","WRE"]
[null,"Individual","Individual","Individual","Team","Team","Individual","Individual","Individual","Team","Individual","Road Race","Single","Individual","Individual","Individual","Dressage Individual","Team","Individual","Individual","Individual","Individual","Individual","Team","Team","Individual","Individual","Individual","Individual","Individual","Individual","Team","ALL","Individual","Individual","Individual","Duet","Individual","Singles","Individual","Individual","Individual","Doubles","Team","Individual","Team","Individual"]
[null,"Team","Relay","Doubles",null,null,null,null,null,null,null,"Time Trial",null,"Group","Team","Synchronised","Dressage Group",null,"Team","Team",null,"Group",null,null,null,null,null,null,null,null,"Team",null,null,"Team",null,null,"Team","Relay","Doubles",null,"Mixed Relay","Team"]
[null,null,null,null,null,null,null,null,null,null,null,null,null,null,null,null,"Eventing Individual"]
[null,null,null,null,null,null,null,null,null,null,null,null,null,null,null,null,"Eventing Group"]
[null,null,null,null,null,null,null,null,null,null,null,null,null,null,null,null,"Jumping Individual"]
[null,null,null,null,null,null,null,null,null,null,null,null,null,null,null,null,"Jumping Group"]